{"text_format":"1","workbook":"xlsx","n_sheets":1,"sheets":["Sheet1"],"not_rendered":{"charts":0,"images":0,"macros":1,"external_links":0,"defined_names":1,"comments":0,"pivot_tables":0},"unopened":[],"bounds":{"document_bytes":16777216,"sheet_cells":100000,"rows_first":2000,"rows_last":500,"rows_between":2000,"halvings":0,"cell_chars":16384,"cell_head_chars":4096},"cells_cut":0,"cells_raw":0,"read":"whole","date_system":"1900"}

{"sheet":"Sheet1","index":0,"n_rows":32,"n_cols":15,"rows_kept":32,"cut":false,"hidden":false,"merged":[[31,0,31,5],[3,0,11,7],[22,1,22,5],[21,1,21,5],[14,7,15,11],[12,0,13,5],[12,7,13,14],[18,1,18,5],[28,1,28,5],[3,8,3,12],[14,12,15,14],[10,13,11,14],[24,1,24,5],[30,1,30,5],[29,1,29,5],[27,1,27,5],[23,1,23,5],[25,1,25,5],[5,8,11,12],[26,1,26,5]]}
[]
[]
[]
["INSTRUCTIONS:  Use this form when a single information collection document involves multiple reporting and recordkeeping requirements.  The totals of the figures in cols. should be entered in item 13 of OMB-83-1:                  cols. (D) &/or (I) = 13a (respondent is only counted once); cols. F & I = 13b;         cols. H & K = 13c.                                                                                                                                                                                                                                                                                                       (F)Total/(D)Total = (E)Average     (H)Total/(F)Total = (G)Average     (K)Total/(I)Total = (J)Average\nNOTE:  The columns will calculate automatically.  If Col. E's response is something other than annually, i.e., 1/6 years, list as \"1/6\" & decimal will display.    \n",null,null,null,null,null,null,null,"TITLE OF INFORMATION COLLECTION DOCUMENT",null,null,null,null,"OMB NO. "]
[]
[null,null,null,null,null,null,null,null,"Export Fruit Acts (7 USC 581-590 and 7 USC 591-599)",null,null,null,null,"0581-0143"]
[]
[]
[null,null,null,null,null,null,null,null,null,null,null,null,null,"DATE PREPARED"]
[]
[null,null,null,null,null,null,null,null,null,null,null,null,null,"2013-05-09"]
[]
["IDENTIFICATION OF REPORTING OR RECORDKEEPING REQUIREMENT",null,null,null,null,null,null,"ANNUAL BURDEN"]
[]
[null,null,null,null,null,null,null,"REPORTS",null,null,null,null,"RECORDS"]
[]
[null,null,null,null,null,null,null,null,null,null,null,null,null,null,"TOTAL"]
[null,null,null,null,null,null,"FORMS NO (S)","NO. OF","NO OF","TOTAL ANNUAL","HOURS","TOTAL ","NO. OF ","ANNUAL ","RECORD-"]
["SECTION OF","DESCRIPTION",null,null,null,null,"(If \"none\"","RESPONDENTS","RESPONSES","RESPONSES","PER  ","HOURS","RECORD-","HOURS PER","KEEPING HOURS"]
["REGS.",null,null,null,null,null,"so state)",null,"PER ","(Col. D x E)","RESPONSE","(Col. F x G)","KEEPERS","RECORD-","(Col. I x J)"]
[null,null,null,null,null,null,null,null,"RESPONDENT",null,null,null,null,"KEEPER"]
["(A)","(B)",null,null,null,null,"(C)","(D)","(E)","(F)","(G)","(H)","(I)","(J)","(K)"]
["7 CFR \n33.10(e)","APPLES \nRequest for inspection\n(telephone call, no burden)",null,null,null,null,"None",68,1,{"$f":"SUM(H23*I23)","v":68},0,{"$f":"SUM(J23*K23)","v":0},null,null,{"$f":"SUM(M23*N23)","v":0}]
[]
["33.11(a)","Recordkeeping \n(est. 68 exporters and 15 carriers)",null,null,null,null,"None",0,0,{"$f":"SUM(H25*I25)","v":0},0,{"$f":"SUM(J25*K25)","v":0},83,0.25,{"$f":"SUM(M25*N25)","v":20.75}]
[]
["35.11(c)","GRAPES \nRequest for inspection \n(telephone call, no burden)",null,null,null,null,"None",14,1,{"$f":"SUM(H27*I27)","v":14},0,{"$f":"SUM(J27*K27)","v":0},null,null,{"$f":"SUM(M27*N27)","v":0}]
[]
["35.12(c)","Recordkeeping\n(est. 14 exporters and 5 carriers)",null,null,null,null,"None",0,0,{"$f":"SUM(H29*I29)","v":0},0,{"$f":"SUM(J29*K29)","v":0},19,0.25,{"$f":"SUM(M29*N29)","v":4.75}]
[null,"SUBTOTAL",null,null,null,null,null,null,null,{"$f":"SUM(J23:J29)","v":82},null,{"$f":"SUM(L23:L29)","v":0},{"$f":"SUM(M23:M29)","v":102},null,{"$f":"SUM(O23:O29)","v":25.5}]
[null,"TOTAL OF ALL PAGES",null,null,null,null,null,null,null,{"$f":"SUM(J30)","v":82},null,{"$f":"SUM(L30)","v":0},{"$f":"SUM(M30)","v":102},null,{"$f":"SUM(O30)","v":25.5}]
["TOTAL - COLUMNS \"F\" AND \"I\" = OMB 831, 13 b; COLUMNS \"H\" AND \"K\" = OMB 831, 13c",null,null,null,null,null,null,null,null,{"$f":"SUM(J31+M31)","v":184},null,25]